[Event "Main Event"]
[Site "Chess.com"]
[Date "2023.09.09"]
[Round "1"]
[White "Firouzja, Alireza"]
[Black "Andreikin, Dmitry"]
[Result "1-0"]
[WhiteElo "3093"]
[BlackElo "3046"]
[ECO "D35"]
[EventDate "2023.??.??"]
[Annotator "rafael"]
[PlyCount "89"]
[Beauty "7353118228999"]
[EventType "schev"]
[EventRounds "2"]
[TimeControl "180+1"]

1.c4 e6 2.Nc3 d5 3.d4 Nf6 4.cxd5 exd5 5.Bg5 c6 6.e3 Bf5 7.Qf3 Bg6 8.Bxf6 Qxf6 9.Qxf6 gxf6 {An important endgame that has occurred in many Queen's Gambit Declined games. Black has a poor pawn structure, but it's unclear whether White can exploit the weaknesses to gain an advantage.} 10.Nf3 Nd7 11.Nh4 Nb6 ( 11...Be7 {is the most popular move.} ) 12.Be2 ( 12.f4 {Carlsen preferred this move when playing this position.} 12...f5 13.Bd3 Nc4 14.Bxc4 dxc4 15.Kf2 {with a small advantage in Carlsen-Sharafiev, Chess.com (rapid) 2017.} ) 12...Be7 ( 12...Nc4 13.Nxg6 hxg6 14.Bxc4 dxc4 15.Ke2 f5 {was equal in Giannetto-Palladino, ICCF email 2015.} ) 13.g3 Nc4 14.Bxc4 {A new move.} ( 14.Nxg6 hxg6 15.Bxc4 dxc4 16.h4 Kd7 17.Ke2 f5 {led to equality in Bescos Anzano-Manso Gil, email 2015.} ) 14...dxc4 15.e4 {White's idea is to play f3, castle queenside, maneuver the knight to f4, and then push the central pawns.} 15...b5 ( 15...O-O-O {It's better to castle since White can try to exploit the rook on the a-file after the move played in the game.} 16.O-O-O b5 ) 16.f3 ( 16.a4 $1 {[%c_effect a4;square;a4;type;GreatFind;persistent;true] is more dangerous for Black.} 16...b4 17.Nxg6 hxg6 18.Ne2 {followed by Rc1.} ) 16...h5 $6 {[%c_effect h5;square;h5;type;Inaccuracy;persistent;true] This move doesn't seem right. Black has a good position after} ( 16...O-O-O 17.O-O-O f5 $1 {[%c_effect f5;square;f5;type;GreatFind;persistent;true]} 18.Nxf5 ( 18.exf5 $2 {[%c_effect f5;square;f5;type;Mistake;persistent;true]} 18...Bh5 {Black will capture the h4-knight and get the advantage.} ) 18...Bxf5 19.exf5 Bf6 ) 17.O-O-O ( 17.a4 $1 {[%c_effect a4;square;a4;type;GreatFind;persistent;true] is even better now.} ) 17...Rd8 ( 17...O-O-O $1 {[%c_effect c8;square;c8;type;GreatFind;persistent;true] Once again, the principle \"when in doubt, castle\" should be followed.} ) 18.Ne2 Rg8 19.Nf4 {White has completed his plan and is ready to play Rhe1 followed by e4-e5 or d4-d5. Andreikin tries to confuse his opponent.} 19...f5 $5 {[%c_effect f5;square;f5;type;Interesting;persistent;true]} 20.exf5 $6 {[%c_effect f5;square;f5;type;Inaccuracy;persistent;true]} ( 20.e5 $1 {[%c_effect e5;square;e5;type;GreatFind;persistent;true] is much better: the bishop on g6 is paralyzed and White has a bid advantage.} ) 20...Bxh4 21.gxh4 ( 21.fxg6 Bg5 {with an acceptable position for Black.} ) 21...Bxf5 22.Rhe1+ Kf8 23.Re5 Bd3 $1 {[%c_effect d3;square;d3;type;GreatFind;persistent;true] Andreikin defends very well.} 24.Nxd3 cxd3 25.Rxd3 Rg2 {Black has enough activity to equalize the game.} 26.Rxh5 Rxh2 $6 {[%c_effect h2;square;h2;type;Inaccuracy;persistent;true]} ( 26...Rd6 $1 {[%c_effect d6;square;d6;type;GreatFind;persistent;true] is more accurate:} 27.d5 Rxh2 {with equality.} ) 27.d5 $6 {[%c_effect d5;square;d5;type;Inaccuracy;persistent;true]} ( 27.Rh6 $1 {[%c_effect h6;square;h6;type;GreatFind;persistent;true] This move threatens the c6-pawn and poses difficult problems for Black.} ) 27...cxd5 $2 {[%c_effect d5;square;d5;type;Mistake;persistent;true] A blunder.} ( 27...Rd6 $1 {[%c_effect d6;square;d6;type;GreatFind;persistent;true] is necessary, with a likely draw.} ) 28.Rh8+ $1 {[%c_effect h8;square;h8;type;GreatFind;persistent;true]} 28...Ke7 29.Rxd8 Kxd8 30.Rxd5+ Ke8 {This leaves the queenside unprotected, but the game also cannot be saved after} ( 30...Kc7 31.Rxb5 Rxh4 32.Rf5 Rh7 33.Kc2 {The number-one factor to fight for a draw in a rook endgame a pawn down is rook activity, something that Black is definitely lacking.} ) 31.Rxb5 Rxh4 32.Rb8+ Ke7 33.Rb7+ Ke6 34.Rxa7 Rh1+ 35.Kc2 Rh2+ 36.Kc3 Rf2 37.Ra6+ Ke5 38.Ra5+ Kf4 39.b4 $1 {[%c_effect b4;square;b4;type;GreatFind;persistent;true] White's pawns are much faster than Black's lonely warrior.} 39...Rxf3+ 40.Kc4 Rf1 41.b5 Rb1 42.Kc5 Ke5 43.b6 Rc1+ 44.Kb5 Kd6 45.Ra8 1-0

[Event "Main Event"]
[Site "Chess.com"]
[Date "2023.09.15"]
[Round "2"]
[White "Nihal, Sarin"]
[Black "Vachier Lagrave, Maxime"]
[Result "1-0"]
[WhiteElo "3117"]
[BlackElo "3161"]
[ECO "D02"]
[EventDate "2023.??.??"]
[Annotator "rafael"]
[PlyCount "57"]
[Beauty "8249692663303"]
[EventType "schev"]
[EventRounds "2"]
[TimeControl "300+1"]

{[%evp 0,57,22,24,22,28,24,-16,14,9,1,13,24,-1,21,18,6,-25,5,-30,8,8,20,25,40,49,45,47,44,47,53,50,51,46,54,30,54,47,70,75,81,82,107,109,109,87,91,87,178,181,284,282,275,295,312,313,481,482,482,482]} 
1.d4 Nf6 2.Nf3 d5 3.c3 c6 4.Qc2 {A curious little move that Nihal has played before. The idea is to avoid the development of Black's bishop on f5.} 4...g6 {Preparing the to develop the bishop on f5 anyway. The problem is that Black's dark-squared bishop won't be so well placed on g7. To be honest, developing the light-squared bishop to f5 is not such a great idea either since there's a pawn on g6. That said, the move is still perfectly playable.} ( 4...Bg4 {is a natural alternative and was played against Nihal in a rapid game.} 5.Ne5 Bh5 6.Bf4 Nbd7 7.e3 e6 8.Qb3 Qb6 {with equality in Nihal-Harikrishna, ESP-chT Toledo (rapid) 2022.} ) 5.Bf4 Bg7 6.e3 Bf5 7.Qb3 Qb6 8.c4 {A new move.} ( 8.h3 {with the idea of playing g2-g4, disturbing the bishop, was played in Ter Sahakyan-Sarana, Olympic E-sports (blitz) 2023.} ) 8...Nbd7 ( 8...Na6 $5 {[%c_effect a6;square;a6;type;Interesting;persistent;true] It's also possible to develop the knight here. A knight on the rim is not always dim, especially when it can soon go to a more active square (in this case, b4).} ) 9.Nc3 O-O 10.h3 h5 {A natural reaction, trying to take the sting out of the g2-g4 push. There was a better move, however.} ( 10...Qa5 $1 {[%c_effect a5;square;a5;type;GreatFind;persistent;true] exploiting the e1-a5 diagonal and the pin on the c3-knight gives Black an excellent position.} 11.Rc1 ( 11.Be2 dxc4 $1 {[%c_effect c4;square;c4;type;GreatFind;persistent;true]} 12.Bxc4 b5 13.Be2 Be6 14.Qc2 b4 15.Qa4 Qb6 {followed by c6-c5.} ) 11...dxc4 12.Bxc4 b5 13.Be2 Be6 {with good counterplay.} ) 11.Be2 Qxb3 $6 {[%c_effect b3;square;b3;type;Inaccuracy;persistent;true] A positional mistake. It's better to capture on c4 before exchanging queens.} ( 11...dxc4 $1 {[%c_effect c4;square;c4;type;GreatFind;persistent;true]} 12.Bxc4 Qxb3 13.Bxb3 c5 $1 {[%c_effect c5;square;c5;type;GreatFind;persistent;true] with a good position.} ) 12.axb3 {Now White has a more comfortable position. The a-file is open for White's rook, and Black cannot capture on c4 since it leaves White with a much better pawn structure.} 12...a6 13.O-O Rfc8 14.Rfc1 {White's moves are natural and easy.} 14...Be6 {A strange move and proof that it's not easy for Black to find a plan.} ( 14...Ne4 {is a possibility in order to exchange pieces.} 15.cxd5 Nxc3 16.bxc3 cxd5 {with a slight advantage for White due to the better pawn structure: one pawn island against two.} ) 15.c5 {A natural reaction in a blitz game. Nihal has a clear plan now: he wants to play b3-b4, followed by the Nd2-Nb3-Na5 maneuver, all very thematic in these types of positions.} ( 15.Ng5 {forces the bishop back, but it's not such a big deal.} 15...Bf5 ) ( 15.Ra5 $5 {[%c_effect a5;square;a5;type;Interesting;persistent;true] My computer is very happy with this move, indicating a good advantage for White. The machine is saving Nf3-g5 for later. The rook presses the d5-pawn from the side.} ) 15...Nf8 ( 15...Bf5 {Black should consider returning the bishop immediately to play ...Ne4.} ) 16.b4 N6d7 17.Nd2 {Black's last moves look a bit passive, but there's a way to make sense of them: he should now play 17...f6, followed by Bf7 and e7-e5.} 17...Bf5 $2 {[%c_effect f5;square;f5;type;Mistake;persistent;true] This move loses precious time.} ( 17...f6 $1 {[%c_effect f6;square;f6;type;GreatFind;persistent;true]} 18.Nb3 Bf7 19.Na5 e5 20.Bg3 Rcb8 {followed by Nf8-e6, although White is better.} ) 18.g4 hxg4 19.hxg4 Be6 20.Nb3 {White completes his plan and has a winning positional advantage. Black's pieces will be tied to the defense of the b7-pawn.} 20...Nf6 21.f3 Bd7 22.Na5 ( 22.Na4 {is even better.} ) 22...Ra7 23.Kf2 {It's always good to bring the king closer to the center, especially when your opponent is paralyzed.} 23...Ne8 {Allowing a pretty finish.} 24.b5 $3 {[%c_effect b5;square;b5;type;Brilliant;persistent;true] A decisive break.} 24...axb5 {This loses an exchange, but the alternative doesn't help.} ( 24...cxb5 25.Nxd5 ) 25.Nxc6 $1 {[%c_effect c6;square;c6;type;GreatFind;persistent;true] this is the point of White's previous move.} 25...bxc6 ( 25...Rxa1 26.Nxe7+ ) 26.Rxa7 f6 27.Bxb5 $1 {[%c_effect b5;square;b5;type;GreatFind;persistent;true] The demolition of Black's pawn structure continues.} 27...cxb5 28.Nxd5 Kf7 29.Nb6 {The c-pawn is ready to march up the board, and Vachier-Lagrave decided enough was enough.} 1-0

[Event "Speed Chess Championship 2023"]
[Site "Chess.com"]
[Date "2023.09.04"]
[Round "1"]
[White "So, Wesley"]
[Black "Aronian, Levon"]
[Result "1-0"]
[WhiteElo "3054"]
[BlackElo "3056"]
[ECO "D02"]
[EventDate "2023.??.??"]
[Annotator "rafael"]
[PlyCount "79"]
[Beauty "7699668437030"]
[EventType "team-tourn"]
[TimeControl "300+1"]

1.d4 d5 2.Nf3 c6 3.Bf4 {The London System is always present, especially in blitz matches.} 3...Qb6 4.Qc1 Bg4 5.e3 Nf6 ( 5...Bxf3 {is possible, to disrupt the pawn structure.} 6.gxf3 {With chances for both sides.} ) 6.c4 {A new position on the sixth move already.} 6...Nbd7 7.Nc3 e6 8.c5 {Pushing c4-c5 in these positions is always a difficult choice, since White loses central control.} ( 8.Nd2 $1 {[%c_effect d2;square;d2;type;GreatFind;persistent;true] this move first is more accurate, leaving c4-c5 as a possibility for later.} ) 8...Qd8 9.Nd2 {White's idea is to play b4 without Black having the option of capturing the knight. This piece can later go to b3 and the pawn breaks are well controlled. Black must strike now in order to fight for equality.} 9...Nh5 $2 {[%c_effect h5;square;h5;type;Mistake;persistent;true]} ( 9...Be7 10.h3 Bf5 11.b4 {with advantage for White.} ) ( 9...e5 $1 {[%c_effect e5;square;e5;type;GreatFind;persistent;true] Black gets a playable position after this strong move.} 10.dxe5 Nh5 11.h3 ( 11.b4 a5 12.a3 Nxf4 13.exf4 g5 $1 {[%c_effect g5;square;g5;type;GreatFind;persistent;true] with excellent counterplay.} ) 11...Nxf4 12.exf4 Be6 {with a double-edged position.} ) 10.h3 $1 {[%c_effect h3;square;h3;type;GreatFind;persistent;true] White gets the advantage now.} 10...Nxf4 11.hxg4 Ng6 12.f4 $1 {[%c_effect f4;square;f4;type;GreatFind;persistent;true] A good prophylactic move, avoiding …e6-e5.} 12...Be7 13.Bd3 O-O ( 13...Bh4+ {The check is not dangerous, since White's king doesn't feel threatened in the middle of the board.} 14.Ke2 ) 14.Qc2 ( 14.f5 {is tempting, but Black can sacrifice the knight to achieve practical compensation:} 14...exf5 15.gxf5 Nge5 $1 {[%c_effect e5;square;e5;type;GreatFind;persistent;true]} ( 15...Nh8 {is too ugly.} ) 16.dxe5 Nxe5 17.Qc2 Bxc5 ) 14...b6 15.cxb6 $6 {[%c_effect b6;square;b6;type;Inaccuracy;persistent;true]} ( 15.f5 $1 {[%c_effect f5;square;f5;type;GreatFind;persistent;true] is very good now, since the knight sacrifice is not so good anymore.} ) 15...c5 $1 {[%c_effect c5;square;c5;type;GreatFind;persistent;true]} 16.f5 Bh4+ $2 {[%c_effect h4;square;h4;type;Mistake;persistent;true]} ( 16...cxd4 $1 {[%c_effect d4;square;d4;type;GreatFind;persistent;true] gives Black adequate counterplay:} 17.fxg6 ( 17.exd4 {now the knight gets the f4-square:} 17...exf5 18.gxf5 Nf4 $1 {[%c_effect f4;square;f4;type;GreatFind;persistent;true]} ) 17...dxc3 18.gxf7+ Kxf7 $1 {[%c_effect f7;square;f7;type;GreatFind;persistent;true] with a complicated position.} ) 17.Kd1 c4 ( 17...cxd4 {This doesn't work now for tactical reasons:} 18.exd4 exf5 19.gxf5 Nf4 20.f6 $1 {[%c_effect f6;square;f6;type;GreatFind;persistent;true] we can see now the problem with the bishop on h4.} ) 18.Be2 exf5 19.gxf5 Nh8 {A sad fate for the knight.} 20.Nxd5 ( 20.b7 {is even better:} 20...Rb8 21.Nxd5 Rxb7 22.Qe4 Bg5 23.f6 {winning material.} ) 20...Nxb6 21.Nxb6 axb6 22.Bxc4 Bg5 23.Rh3 Re8 24.Qd3 {White has consolidated and is two pawns up.} 24...Qe7 25.Kc2 ( 25.f6 $1 {[%c_effect f6;square;f6;type;GreatFind;persistent;true] wins immediately, here and on the next move.} ) 25...b5 26.Bxb5 ( 26.f6 $1 {[%c_effect f6;square;f6;type;GreatFind;persistent;true]} ) 26...Rec8+ 27.Bc4 Qb7 28.g4 $2 {[%c_effect g4;square;g4;type;Mistake;persistent;true] This allows a surprsing tactical chance for Black.} ( 28.Rah1 {is better, followed by Kb1 with an easy win.} ) 28...Qg2 $2 {[%c_effect g2;square;g2;type;Mistake;persistent;true]} ( 28...Rxc4+ $1 {[%c_effect c4;square;c4;type;GreatFind;persistent;true] is very strong:} 29.Nxc4 ( 29.Qxc4 $2 {[%c_effect c4;square;c4;type;Mistake;persistent;true]} 29...Rc8 ) 29...Qg2+ 30.Kc3 Qxh3 {The game becomes sharp, although White is still better.} ) 29.Rah1 h6 30.Kb1 {White is winning again.} 30...Rab8 31.Bb3 Re8 32.Nc4 Rbd8 33.Qc2 Qxg4 34.Ne5 Rxe5 35.dxe5 Kh7 36.e6 fxe6 37.fxe6+ Ng6 38.R3h2 Qb4 39.Rf2 Qb7 40.Qxg6+ $1 {[%c_effect g6;square;g6;type;GreatFind;persistent;true] A nice finishing touch.} ( 40.Qxg6+ Kxg6 41.Bc2+ {with mate.} ) 1-0

[Event "Speed Chess Championship 2023"]
[Site "Chess.com"]
[Date "2023.09.11"]
[Round "1"]
[White "Caruana, Fabiano"]
[Black "Abdusattorov, Nodirbek"]
[Result "1-0"]
[WhiteElo "3076"]
[BlackElo "3025"]
[ECO "D02"]
[EventDate "2023.??.??"]
[Annotator "rafael"]
[PlyCount "65"]
[Beauty "8178288820239"]
[EventType "team-tourn"]
[TimeControl "300+1"]

{[%evp 0,65,24,24,12,12,30,24,19,55,45,16,17,17,25,10,16,0,0,0,45,-8,-12,-35,-28,-28,-38,-57,-52,-58,-53,-73,-54,-59,-47,-57,-35,-35,-13,-26,-26,-18,-12,-24,-14,-14,-21,-15,-24,-22,-1,-18,-22,-26,-9,0,5,-42,1,13,26,26,111,72,29989,29990,29991,334]} 
1.d4 d5 2.Bf4 Nf6 3.Nf3 c5 4.e3 e6 5.Nbd2 Qb6 6.Rb1 {This position has been tested in several games of strong grandmasters in 2023.} 6...Bd7 {Black's plan is to exchange bishops with ...Bb5, a very common plan in the French Defense that is carried over to the London System. It was not easy, but I managed to find something in common between these two variations.} ( 6...cxd4 7.exd4 Bd7 8.c3 Bb5 9.h4 {A curious move that has the computer's approval. The machine is not shy about advancing the pawn to h4 in various openings.} 9...Nc6 10.Bxb5 Qxb5 11.Qb3 a6 12.Qxb5 axb5 13.a3 Nd7 {with a roughly equal endgame in Tabatabaei-Keymer, FIDE World Cup Baku 2023.} ) 7.c3 Bd6 ( 7...Bb5 {immediately is also possible:} 8.c4 dxc4 9.Nxc4 Bxc4 10.Bxc4 Qb4+ 11.Nd2 cxd4 12.exd4 Nc6 13.O-O Rd8 14.a3 Qb6 15.Be3 Qc7 {with chances for both sides in Gukesh-Nakamura, Airthings Masters (rapid) 2023.} ) 8.Bg3 $1 {[%c_effect g3;square;g3;type;GreatFind;persistent;true] It's also possible to exchange and play the normal plan with Ne5-f4, but the move played in the game is more dangerous. It's hard for Black to complete development without trading bishops, but opening the h-file brings the rook to the game.} ( 8.Bxd6 Qxd6 9.Ne5 ) 8...O-O ( 8...cxd4 9.exd4 Bxg3 10.hxg3 Bb5 {This completes Black's initial plan, but Abdusattorov, understandably, refrains from the capture on g3.} ) 9.Bd3 Qc7 10.Bh4 $6 {[%c_effect h4;square;h4;type;Inaccuracy;persistent;true] The plan of capturing the knight on f6 is not effective.} ( 10.dxc5 $1 {[%c_effect c5;square;c5;type;GreatFind;persistent;true]} 10...Qxc5 11.e4 {This creates an unpleasant situation for Black since the pawn is ready to go to e5 but cannot be captured. In case of 11...Bxh3, Black's king feels unsafe.} 11...Bxg3 ( 11...dxe4 $2 {[%c_effect e4;square;e4;type;Mistake;persistent;true]} 12.Nxe4 Nxe4 13.Bxe4 {Black's position collpses.} ) 12.hxg3 ) 10...Nc6 11.Bxf6 gxf6 12.O-O ( 12.Nh4 {is better, but only enough for equality after} 12...f5 13.Qh5 ) 12...c4 $1 {[%c_effect c4;square;c4;type;GreatFind;persistent;true]} 13.Be2 f5 {Black has controlled all of White's pawn breaks and is ready to advance the pawns on the queenside.} 14.g3 b5 15.Nh4 Kh8 16.Ng2 Rg8 ( 16...b4 $1 {[%c_effect b4;square;b4;type;GreatFind;persistent;true] is better, with an advantage for Black.} ) 17.b3 Qa5 18.Qc2 Rgc8 19.bxc4 bxc4 20.Rb7 Rc7 21.Rfb1 Qa6 22.Rxc7 Bxc7 23.Nf4 {The worst is over for White, who managed to stabilize the queenside and can count on equality.} 23...Rb8 24.Rxb8+ Bxb8 25.Qb2 Bd6 26.Bd1 Kg7 $6 {[%c_effect g7;square;g7;type;Inaccuracy;persistent;true] The king goes the wrong way, and this will lead to defeat.} ( 26...Ba3 27.Qc2 Qb6 {followed by ...Qb2, with equality.} ) 27.Nh5+ Kg6 $2 {[%c_effect g6;square;g6;type;Mistake;persistent;true]} ( 27...Kh8 {It's better to go back.} ) 28.h3 {The plan is to play g3-g4, undermining the black king's defenses.} ( 28.Nf3 {is also interesting since the knight cannot be captured.} 28...f6 ( 28...Kxh5 $2 {[%c_effect h5;square;h5;type;Mistake;persistent;true]} 29.Ne5+ Kh6 30.Nxf7+ Kg7 31.Nxd6 {winning a pawn.} ) 29.Nh4+ Kf7 30.Qd2 {with the idea of playing e3-e4 and bringing the queen to h6.} ) 28...Qa3 29.Qc2 Bc7 $6 {[%c_effect c7;square;c7;type;Inaccuracy;persistent;true] played to bring the queen to the defense, but it's already too late.} ( 29...f6 {is a better try.} 30.g4 Ne7 ) 30.g4 $1 {[%c_effect g4;square;g4;type;GreatFind;persistent;true]} 30...Ne7 31.Nf3 {There are other ways to win:} ( 31.gxf5+ Nxf5 32.e4 $1 {[%c_effect e4;square;e4;type;GreatFind;persistent;true]} 32...dxe4 33.Nxe4 {with a decisive attack.} ) ( 31.f4 {with the idea of Nf3-Qg2.} ) 31...Bc8 $6 {[%c_effect c8;square;c8;type;Inaccuracy;persistent;true]} ( 31...f6 {is the only chance.} ) 32.Nh4+ Kh6 33.f4 ( 33.g5+ {also leads to mate:} 33...Kxg5 34.f4+ Kh6 ( 34...Kxh4 35.Qf2+ Kxh3 36.Qg3# ) 35.Qg2 ) 1-0